fUST/lending_fUST_20251214
["ID","MTS","AMOUNT","RATE_DAILY","PERIOD"]
[398477776,1765716632639,-500.0,0.00016974,2]
[398477777,1765716632648,-500.0,0.00016974,2]
[398477779,1765716632658,-494.71503904,0.00016974,2]
[398477782,1765716632667,-500.0,0.00016974,2]
[398477783,1765716632676,-500.0,0.00016974,2]
[398477785,1765716632685,-500.0,0.00016974,2]
[398477786,1765716632693,-500.0,0.00016974,2]
[398477788,1765716632703,-500.0,0.00016974,2]
[398477790,1765716632712,-500.0,0.00016974,2]
[398477792,1765716632721,-500.0,0.00016974,2]
[398477794,1765716632729,-500.0,0.00016974,2]
[398477796,1765716632739,-500.0,0.00016974,2]
[398477798,1765716632748,-500.0,0.00016974,2]
[398477800,1765716632757,-500.0,0.00016974,2]
[398477802,1765716632766,-500.0,0.00016974,2]
[398477804,1765716632774,-500.0,0.00016974,2]
[398477806,1765716632783,-500.0,0.00016974,2]
[398477808,1765716632792,-500.0,0.00016974,2]
[398477810,1765716632803,-500.0,0.00016974,2]
[398477812,1765716632813,-500.0,0.00016974,2]
[398477813,1765716632823,-500.0,0.00016974,2]
[398477814,1765716632833,-500.0,0.00016974,2]
[398477815,1765716632842,-500.0,0.00016974,2]
[398477816,1765716632852,-500.0,0.00016974,2]
[398477817,1765716632862,-500.0,0.00016974,2]
[398477818,1765716632872,-500.0,0.00016974,2]
[398477819,1765716632881,-500.0,0.00016974,2]
[398477820,1765716632892,-500.0,0.00016974,2]
[398477821,1765716632900,-500.0,0.00016974,2]
[398477822,1765716632909,-500.0,0.00016974,2]
[398477823,1765716632920,-500.0,0.00016974,2]
[398477824,1765716632930,-500.0,0.00016974,2]
[398477825,1765716632940,-500.0,0.00016974,2]
[398477826,1765716632949,-500.0,0.00016974,2]
[398477827,1765716632961,-500.0,0.00016974,2]
[398477828,1765716632971,-500.0,0.00016974,2]
[398477829,1765716632981,-500.0,0.00016974,2]
[398477830,1765716632991,-500.0,0.00016974,2]
[398477831,1765716633000,-500.0,0.00016974,2]
[398477832,1765716633009,-500.0,0.00016974,2]
[398477833,1765716633018,-500.0,0.00016974,2]
[398477834,1765716633027,-500.0,0.00016974,2]
[398477835,1765716633036,-500.0,0.00016974,2]
[398477836,1765716633045,-452.43535134,0.00016974,2]
[398477837,1765716633054,-500.0,0.00016974,2]
[398477838,1765716633063,-500.0,0.00016974,2]
[398477839,1765716633072,-500.0,0.00016974,2]
[398477840,1765716633081,-500.0,0.00016974,2]
[398477841,1765716633090,-500.0,0.00016974,2]
[398477842,1765716633098,-500.0,0.00016974,2]
[398477843,1765716633108,-500.0,0.00016974,2]
[398477844,1765716633117,-500.0,0.00016974,2]
[398477845,1765716633127,-500.0,0.00016974,2]
[398477846,1765716633136,-500.0,0.00016974,2]
[398477847,1765716633146,-500.0,0.00016974,2]
[398477848,1765716633155,-500.0,0.00016974,2]
[398477849,1765716633164,-500.0,0.00016974,2]
[398477850,1765716633172,-500.0,0.00016974,2]
[398477851,1765716633181,-500.0,0.00016974,2]
[398477852,1765716633190,-500.0,0.00016974,2]
[398477853,1765716633200,-500.0,0.00016974,2]
[398477854,1765716633209,-500.0,0.00016974,2]
[398477855,1765716633219,-500.0,0.00016974,2]
[398477856,1765716633227,-500.0,0.00016974,2]
[398477857,1765716633237,-500.0,0.00016974,2]
[398477858,1765716633246,-500.0,0.00016974,2]
[398477859,1765716633254,-500.0,0.00016974,2]
[398477860,1765716633263,-500.0,0.00016974,2]
[398477861,1765716633272,-199.17030333,0.00016974,2]
[398477862,1765716633281,-500.0,0.00016974,2]
[398477863,1765716633290,-257.0,0.00016974,2]
[398477864,1765716633299,-204.04729,0.00016977,2]
[398477865,1765716633310,-1000.0,0.00016977,2]
[398477866,1765716633320,-12026.6291857,0.00016977,2]
[398477867,1765716633329,-300.0,0.00017315,2]
[398477868,1765716633338,-300.0,0.00017315,2]
[398477869,1765716633350,-300.0,0.00017315,2]
[398477870,1765716633359,-300.0,0.00017315,2]
[398477871,1765716633369,-300.0,0.00017315,2]
[398477872,1765716633379,-300.0,0.00017315,2]
[398477873,1765716633389,-300.0,0.00017315,2]
[398477874,1765716633398,-300.0,0.00017315,2]
[398477875,1765716633408,-300.0,0.00017315,2]
[398477876,1765716633417,-300.0,0.00017315,2]
[398477877,1765716633426,-300.0,0.00017315,2]
[398477878,1765716633435,-300.0,0.00017315,2]
[398477879,1765716633445,-300.0,0.00017315,2]
[398477880,1765716633454,-300.0,0.00017315,2]
[398477881,1765716633466,-300.0,0.00017315,2]
[398477882,1765716633475,-600.0,0.0001766,2]
[398477883,1765716633484,-765.0,0.00017862,2]
[398477884,1765716633493,-18802.52272633,0.00017873,2]
[398477885,1765716633514,-272.08896774,0.00016973,2]
[398477886,1765716633523,-1138.63611615,0.00017873,2]
[398477887,1765716633534,-600.0,0.00017873,2]
[398477996,1765716643485,-500.0,0.00016973,2]
[398477997,1765716643496,-504.52584185,0.00016973,2]
[398477998,1765716643505,-500.0,0.00016973,2]
[398477999,1765716643515,-14.39377812,0.00016973,2]
[398478002,1765716646699,-485.60622188,0.00016973,2]
[398478003,1765716646709,-500.0,0.00016973,2]
[398478004,1765716646718,-500.0,0.00016973,2]
[398478005,1765716646728,-38035.67993323,0.00017873,2]
[398478006,1765716675027,157.91,0.000134,2]
[398478007,1765716675472,157.91,0.000135,2]
[398478008,1765716675791,157.91,0.000135,2]
[398478009,1765716676111,157.91,0.000136,2]
[398478010,1765716676456,157.91,0.000136,2]
[398478011,1765716676867,157.91,0.000137,2]
[398478012,1765716677182,157.91,0.000137,2]
[398478013,1765716677454,157.91,0.000138,2]
[398478014,1765716677923,157.91,0.000138,2]
[398478015,1765716677997,157.91,0.000139,2]
[398478016,1765716678386,157.91,0.000139,2]
[398478017,1765716678672,157.91,0.00014,2]
[398478018,1765716679003,157.91,0.00014,2]
[398478019,1765716683906,150.0,0.00010164,2]
[398478020,1765716684320,150.0,0.00010648,2]
[398478021,1765716684769,150.0,0.00011132,2]
[398478022,1765716685321,150.0,0.00011616,2]
[398478023,1765716750881,150.0,9.654e-05,2]
[398478024,1765716751314,150.0,0.00010113,2]
[398478025,1765716751683,150.0,0.00010573,2]
[398478026,1765716752108,150.0,0.00011033,2]
[398478030,1765717026532,352.2560985,0.00016,2]
[398478031,1765717147670,-157.27439947,0.00016825,2]
[398478032,1765717147698,-1998.47708847,0.00016871,2]
[398478033,1765717147727,-179.6633472,0.00016898,2]
[398478034,1765717147754,-300.0,0.00016968,2]
[398478035,1765717159387,151.0,0.00016699,2]
[398478036,1765717623578,-150.0,0.00016697,2]
[398478037,1765717623607,-189.27980855,0.00016765,2]
[398478038,1765717623635,-150.0,0.00016834,2]
[398478039,1765717623663,-1748.66745242,0.00016866,2]
[398478040,1765717623693,-361.0,0.00016959,2]
[398478041,1765717623722,-300.0,0.00016964,2]
[398478042,1765717624230,166.86,0.00013417,2]
[398478043,1765717637593,150.0,0.00016695,2]
[398478044,1765717638172,150.0,0.00016832,2]
[398478045,1765717638952,-190.46227742,0.00016965,2]
[398478046,1765717638980,-500.0,0.00016965,2]
[398478047,1765717639009,-500.0,0.00016965,2]
[398478048,1765717639039,-500.0,0.00016965,2]
[398478049,1765717639068,-603.16808929,0.00016965,2]
[398478050,1765717639099,-500.0,0.00016965,2]
[398478051,1765717639128,-500.0,0.00016965,2]
[398478052,1765717639157,-500.0,0.00016965,2]
[398478053,1765717639187,-500.0,0.00016965,2]
[398478054,1765717639218,-500.0,0.00016965,2]
[398478055,1765717683380,229.66,9.99e-05,2]
[398478056,1765717683864,229.66,9.99e-05,2]
[398478057,1765717684153,229.66,9.99e-05,2]
[398478076,1765717832376,-500.0,0.00016695,2]
[398478078,1765717832386,-150.0,0.00016695,2]
[398478080,1765717832395,-150.0,0.00016695,2]
[398478082,1765717832405,-500.0,0.00016695,2]
[398478084,1765717832414,-151.0,0.00016695,2]
[398478086,1765717832424,-1200.0,0.00016829,2]
[398478088,1765717832433,-300.0,0.0001683,2]
[398478090,1765717832448,-300.0,0.0001683,2]
[398478091,1765717832458,-1200.0,0.00016831,2]
[398478092,1765717832467,-300.0,0.00016831,2]
[398478093,1765717832477,-500.0,0.00016832,2]
[398478094,1765717832487,-199.71215558,0.00016832,2]
[398478095,1765717832496,-199.96069389,0.00016832,2]
[398478096,1765717832505,-500.0,0.00016832,2]
[398478097,1765717832515,-500.0,0.00016967,2]
[398478098,1765717832526,-500.0,0.00016967,2]
[398478099,1765717832536,-472.2176625,0.00016967,2]
[398478100,1765717832545,-500.0,0.00016968,2]
[398478101,1765717832555,-347.03553226,0.00016969,2]
[398478102,1765717832578,-152.96446774,0.00016969,2]
[398478103,1765717832587,-313.16366334,0.00016969,2]
[398478104,1765717832598,-186.83633666,0.00016969,2]
[398478105,1765717832608,-500.0,0.00016969,2]
[398478106,1765717832618,-500.0,0.00016969,2]
[398478107,1765717832628,-500.0,0.00016969,2]
[398478108,1765717832638,-500.0,0.00016969,2]
[398478109,1765717832647,-150.0,0.00016969,2]
[398478110,1765717832658,-500.0,0.00016969,2]
[398478111,1765717832668,-250.0,0.00016969,2]
[398478112,1765717832677,-525.4,0.00016975,2]
[398478113,1765717832686,-525.4,0.00016975,2]
[398478114,1765717832696,-525.4,0.00016976,2]
[398478115,1765717832705,-257.27439947,0.00017106,2]
[398478116,1765717832714,-500.0,0.00017106,2]
[398478117,1765717832724,-500.0,0.00017242,2]
[398478118,1765717832733,-500.0,0.00017243,2]
[398478119,1765717832742,-700.0,0.00017272,2]
[398478120,1765717832752,-574.12855637,0.00017272,2]
[398478121,1765717832761,-500.0,0.00017272,2]
[398478122,1765717832770,-500.0,0.00017272,2]
[398478123,1765717832779,-69515.43720681,0.00017282,2]
[398478151,1765717838432,-500.0,0.00016963,2]
[398478152,1765717838442,-383.27098023,0.00016963,2]
[398478153,1765717838451,-500.0,0.00016963,2]
[398478154,1765717838460,-403.62894064,0.00016963,2]
[398478155,1765717838488,-96.37105936,0.00016963,2]
[398478156,1765717838497,-500.0,0.00016963,2]
[398478157,1765717838506,-299.58075115,0.00016963,2]
[398478158,1765717838516,-500.0,0.00016963,2]
[398478159,1765717838525,-500.0,0.00016963,2]
[398478160,1765717838534,-500.0,0.00016963,2]
[398478161,1765717838542,-500.0,0.00016963,2]
[398478162,1765717838552,-242.0907436,0.00016963,2]
[398478294,1765717840689,-257.9092564,0.00016963,2]
[398478296,1765717840700,-175.42229529,0.00016963,2]
[398478299,1765717840711,-324.57770471,0.00016963,2]
[398478301,1765717840721,-128.07132729,0.00016963,2]
[398478303,1765717840733,-371.92867271,0.00016963,2]
[398478305,1765717840742,-500.0,0.00016963,2]
[398478307,1765717840751,-500.0,0.00016963,2]
[398478309,1765717840760,-367.42680777,0.00016963,2]
[398478311,1765717840770,-500.0,0.00016963,2]
[398478313,1765717840779,-441.42144442,0.00016963,2]
[398478315,1765717840794,-58.57855558,0.00016963,2]
[398478317,1765717840804,-500.0,0.00016963,2]
[398478319,1765717840814,-327.46115449,0.00016963,2]
[398478321,1765717840823,-500.0,0.00016963,2]
[398478323,1765717840834,-500.0,0.00016963,2]
[398478325,1765717840843,-114.00535993,0.00016963,2]
[398478328,1765717840855,-385.99464007,0.00016963,2]
[398478330,1765717840864,-500.0,0.00016963,2]
[398478331,1765717840874,-500.0,0.00016963,2]
[398478333,1765717840883,-154.50336517,0.00016963,2]
[398478342,1765717843533,-345.49663483,0.00016963,2]
[398478343,1765717843544,-500.0,0.00016963,2]
[398478344,1765717843553,-500.0,0.00016963,2]
[398478345,1765717843563,-500.0,0.00016963,2]
[398478346,1765717843572,-500.0,0.00016963,2]
[398478347,1765717843582,-500.0,0.00016963,2]
[398478348,1765717843592,-500.0,0.00016963,2]
[398478349,1765717843601,-203.59901238,0.00016963,2]
[398478350,1765717843611,-500.0,0.00016963,2]
[398478351,1765717843620,-500.0,0.00016963,2]
[398478352,1765717843630,-500.0,0.00016963,2]
[398478353,1765717843639,-500.0,0.00016963,2]
[398478354,1765717843648,-500.0,0.00016963,2]
[398478355,1765717843658,-500.0,0.00016963,2]
[398478356,1765717843668,-500.0,0.00016963,2]
[398478357,1765717843678,-500.0,0.00016963,2]
[398478358,1765717843687,-301.58195556,0.00016963,2]
[398478359,1765717843697,-500.0,0.00016963,2]
[398478360,1765717843706,-500.0,0.00016963,2]
[398478361,1765717843717,-500.0,0.00016963,2]
[398478362,1765717843727,-500.0,0.00016963,2]
[398478363,1765717843737,-500.0,0.00016963,2]
[398478364,1765717843747,-500.0,0.00016963,2]
[398478365,1765717843756,-500.0,0.00016963,2]
[398478366,1765717843766,-500.0,0.00016963,2]
[398478367,1765717843775,-500.0,0.00016963,2]
[398478368,1765717843784,-500.0,0.00016963,2]
[398478369,1765717843794,-500.0,0.00016963,2]
[398478370,1765717843803,-500.0,0.00016963,2]
[398478371,1765717843812,-500.0,0.00016963,2]
[398478372,1765717843822,-500.0,0.00016963,2]
[398478373,1765717843831,-500.0,0.00016963,2]
[398478374,1765717843840,-500.0,0.00016963,2]
[398478375,1765717844101,-500.0,0.00016963,2]
[398478376,1765717844139,-500.0,0.00016963,2]
[398478377,1765717844148,-500.0,0.00016963,2]
[398478378,1765717844157,-500.0,0.00016963,2]
[398478379,1765717844166,-500.0,0.00016963,2]
[398478380,1765717844175,-500.0,0.00016963,2]
[398478381,1765717844184,-500.0,0.00016963,2]
[398478382,1765717844193,-500.0,0.00016963,2]
[398478383,1765717844202,-500.0,0.00016963,2]
[398478384,1765717844212,-500.0,0.00016963,2]
[398478385,1765717844223,-500.0,0.00016963,2]
[398478386,1765717844235,-500.0,0.00016963,2]
[398478387,1765717844246,-500.0,0.00016963,2]
[398478388,1765717844255,-500.0,0.00016963,2]
[398478389,1765717844264,-500.0,0.00016963,2]
[398478390,1765717844277,-500.0,0.00016963,2]
[398478391,1765717844287,-500.0,0.00016963,2]
[398478392,1765717844296,-500.0,0.00016963,2]
[398478393,1765717844305,-500.0,0.00016963,2]
[398478394,1765717844315,-500.0,0.00016963,2]
[398478395,1765717844326,-500.0,0.00016963,2]
[398478396,1765717844335,-500.0,0.00016963,2]
[398478397,1765717844346,-277.89261968,0.00016963,2]
[398478398,1765717844359,-500.0,0.00016963,2]
[398478399,1765717844369,-500.0,0.00016963,2]
[398478400,1765717844378,-500.0,0.00016963,2]
[398478401,1765717844392,-500.0,0.00016963,2]
[398478402,1765717844402,-500.0,0.00016963,2]
[398478403,1765717844411,-500.0,0.00016963,2]
[398478404,1765717844421,-500.0,0.00016963,2]
[398478405,1765717844430,-3021.56695696,0.00017282,2]
[398478406,1765717844446,-17834.0,0.00017282,2]
[398478407,1765717844457,-289.54641168,0.00017282,2]
[398478408,1765717844553,-1135.04524533,0.00017282,2]
[398478410,1765717846481,-253.7425319,0.00017282,2]
[398478411,1765717846492,-891.8,0.00017282,2]
[398478412,1765717846503,-4487.88283598,0.00017282,2]
[398478413,1765717846536,-19009.99999998,0.00017282,2]
[398478418,1765717851260,199.90777494,0.000144,2]
[398478419,1765717856865,-500.0,0.00016963,2]
[398478420,1765717856897,-500.0,0.00016963,2]
[398478421,1765717856928,-500.0,0.00016963,2]
[398478422,1765717856958,-500.0,0.00016963,2]
[398478423,1765717856988,-500.0,0.00016963,2]
[398478424,1765717857019,-500.0,0.00016963,2]
[398478425,1765717857049,-500.0,0.00016963,2]
[398478426,1765717857080,-500.0,0.00016963,2]
[398478427,1765717857112,-500.0,0.00016963,2]
[398478428,1765717857142,-500.0,0.00016963,2]
[398478429,1765717859921,-500.0,0.00016963,2]
[398478430,1765717859953,-450.0,0.00016963,2]
[398478431,1765717863067,-300.0,0.00017281,2]
[398478432,1765717863077,-2633.10134334,0.00017282,2]
[398478433,1765717863166,150.4,0.00012,2]
[398478434,1765717863467,150.4,0.000121,2]
[398478435,1765717863866,150.4,0.000123,2]
[398478436,1765717864163,150.4,0.000124,2]
[398478437,1765717864542,150.4,0.000126,2]
[398478438,1765717864852,150.4,0.000127,2]
[398478439,1765717865159,150.4,0.000129,2]
[398478440,1765717865492,150.4,0.00013,2]
[398478441,1765717865904,150.4,0.000131,2]
[398478442,1765717866111,-10000.01,0.00017282,2]
[398478443,1765717866330,150.4,0.000133,2]
[398478444,1765717866667,150.4,0.000134,2]
[398478445,1765717866975,150.4,0.000136,2]
[398478446,1765717867280,150.4,0.000137,2]
[398478447,1765717867605,150.4,0.000139,2]
[398478448,1765717867949,150.4,0.00014,2]
[398478449,1765717875176,-10000.01,0.00017282,2]
[398478450,1765717878777,-10000.01,0.00017282,2]
[398478451,1765717878795,-10000.01,0.00017282,2]
[398478452,1765717878834,-10000.01,0.00017282,2]
[398478453,1765717879041,-10000.01,0.00017282,2]
[398478454,1765717879093,-10000.01,0.00017282,2]
[398478455,1765717879231,-10000.01,0.00017282,2]
[398478456,1765717879390,-10000.01,0.00017282,2]
[398478457,1765717890551,-10000.01,0.00017282,2]
[398478458,1765717890691,-10000.01,0.00017282,2]
[398478459,1765717890827,-10000.01,0.00017282,2]
[398478460,1765717891100,-10000.01,0.00017282,2]
[398478461,1765717891155,-10000.01,0.00017282,2]
[398478462,1765717891464,-10000.01,0.00017282,2]
[398478463,1765717891594,-10000.01,0.00017282,2]
[398478464,1765717891814,-10000.01,0.00017282,2]
[398478465,1765717900500,150.0,0.00010679,2]
[398478466,1765717900937,220.68,0.0001165,2]
[398478467,1765717901391,331.02,0.00012621,2]
[398478468,1765717901805,441.36,0.00013592,2]
[398478469,1765717902213,551.7,0.00014563,2]
[398478470,1765717902714,662.04,0.00015534,2]
[398478471,1765717903071,772.38,0.00016504,2]
[398478473,1765717906518,350.505,0.00016936,2]
[398478474,1765717912960,500.0,0.00016963,2]
[398478475,1765717913004,500.0,0.00016963,2]
[398478476,1765717913040,500.0,0.00016963,2]
[398478477,1765717913072,500.0,0.00016963,2]
[398478478,1765717913107,500.0,0.00016963,2]
[398478479,1765717913161,500.0,0.00016963,2]
[398478480,1765717913219,500.0,0.00016963,2]
[398478481,1765717913273,500.0,0.00016963,2]
[398478482,1765717913329,400.0,0.00016963,2]
[398478483,1765717913382,500.0,0.00016963,2]
[398478484,1765717913436,500.0,0.00016963,2]
[398478485,1765717914584,1120.325,0.00017211,2]
[398478486,1765717914612,409.75902085,0.00017211,2]
[398478491,1765717918773,500.0,0.00016963,2]
[398478492,1765717918798,207.49186753,0.00016963,2]
[398478493,1765717918847,500.0,0.00016963,2]
[398478494,1765717918888,500.0,0.00016963,2]
[398478495,1765717918929,500.0,0.00016963,2]
[398478496,1765717918971,466.87221299,0.00016963,2]
[398478497,1765717919015,500.0,0.00016963,2]
[398478498,1765717919051,500.0,0.00016963,2]
[398478499,1765717919095,514.28983623,0.00016963,2]
[398478500,1765717919143,500.0,0.00016963,2]
[398478501,1765717919177,500.0,0.00016963,2]
[398478502,1765717919219,500.0,0.00016963,2]
[398478503,1765717919269,500.0,0.00016963,2]
[398478504,1765717919328,500.0,0.00016963,2]
[398478505,1765717919365,500.0,0.00016963,2]
[398478506,1765717919419,500.0,0.00016963,2]
[398478507,1765717919472,500.0,0.00016963,2]
[398478508,1765717923223,300.0,0.00016962,2]
[398478509,1765717923433,163.5,0.000134,2]
[398478510,1765717923784,163.5,0.000135,2]
[398478511,1765717924084,163.5,0.000135,2]
[398478512,1765717924855,163.5,0.000136,2]
[398478513,1765717925162,163.5,0.000137,2]
[398478514,1765717925610,163.5,0.000137,2]
[398478515,1765717925912,120.5970624,0.000138,2]
[398478516,1765717925936,42.9029376,0.000138,2]
[398478517,1765717926327,163.5,0.000138,2]
[398478518,1765717929740,163.5,0.000139,2]
[398478519,1765717930055,163.5,0.000139,2]
[398478520,1765717942784,500.0,0.00016963,2]
[398478521,1765717942816,500.0,0.00016963,2]
[398478522,1765717942844,500.0,0.00016963,2]
[398478523,1765717942875,650.0,0.00016963,2]
[398478524,1765717942902,500.0,0.00016963,2]
[398478525,1765717942933,500.0,0.00016963,2]
[398478526,1765717942962,500.0,0.00016963,2]
[398478527,1765717942996,500.0,0.00016963,2]
[398478528,1765717943023,500.0,0.00016963,2]
[398478529,1765717943052,500.0,0.00016963,2]
[398478530,1765717943084,500.0,0.00016963,2]
[398478531,1765717943112,500.0,0.00016963,2]
[398478532,1765717943139,500.0,0.00016963,2]
[398478533,1765717943166,567.24733709,0.00016963,2]
[398478534,1765717943193,500.0,0.00016963,2]
[398478535,1765717943223,500.0,0.00016963,2]
[398478536,1765717943266,500.0,0.00016963,2]
[398478537,1765717943293,500.0,0.00016963,2]
[398478538,1765717943330,249.35972531,0.00016963,2]
[398478539,1765717943352,250.64027469,0.00016963,2]
[398478540,1765717943379,500.0,0.00016963,2]
[398478541,1765717943416,500.0,0.00016963,2]
[398478542,1765717943452,500.0,0.00016963,2]
[398478543,1765717943484,500.0,0.00016963,2]
[398478544,1765717943519,500.0,0.00016963,2]
[398478545,1765717943555,500.0,0.00016963,2]
[398478546,1765717943598,500.0,0.00016963,2]
[398478547,1765717943639,500.0,0.00016963,2]
[398478548,1765717943673,500.0,0.00016963,2]
[398478549,1765717943764,500.0,0.00016963,2]
[398478550,1765717975661,500.0,0.00016969,2]
[398478551,1765717975928,500.0,0.00016969,2]
[398478552,1765717976187,500.0,0.00016974,2]
[398478553,1765717979324,311.66,0.00010671,2]
[398478554,1765717979740,623.32,0.00011641,2]
[398478555,1765717980142,934.99,0.00012611,2]
[398478556,1765717980565,1246.65,0.00013581,2]
[398478557,1765717980961,132.74972531,0.00014551,2]
[398478558,1765717980988,1425.56027469,0.00014551,2]
[398478559,1765717981387,1869.97,0.00015521,2]
[398478560,1765717981799,2181.63,0.00016491,2]
[398478561,1765718024739,2068.5703972,0.00017266,2]
[398478562,1765718067282,500.0,0.00016969,2]
[398478563,1765718067312,354.42,0.00010686,2]
[398478564,1765718067469,500.0,0.00016969,2]
[398478565,1765718067687,708.84,0.00011657,2]
[398478566,1765718067713,391.01932811,0.00016974,2]
[398478567,1765718067736,108.98067189,0.00016974,2]
[398478568,1765718068079,1063.26,0.00012629,2]
[398478569,1765718068954,1417.69,0.000136,2]
[398478570,1765718068987,501.20432136,0.00016969,2]
[398478571,1765718069417,1772.11,0.00014572,2]
[398478572,1765718069813,2126.53,0.00015543,2]
[398478573,1765718070690,2480.95,0.00016515,2]
[398478595,1765718080421,158.98937,7.982e-05,2]
[398478596,1765718080625,158.98937,0.00015963,2]
[398478597,1765718112324,160.0,5.2e-07,2]
[398478598,1765718113405,51.30626675,5.2e-07,2]
[398478599,1765718113426,108.69373325,5.2e-07,2]
[398478600,1765718114473,160.0,5.2e-07,2]
[398478601,1765718115594,160.0,5.2e-07,2]
[398478602,1765718116647,160.0,5.2e-07,2]
[398478603,1765718117689,160.0,5.2e-07,2]
[398478604,1765718118724,160.0,5.2e-07,2]
[398478605,1765718119795,160.0,5.2e-07,2]
[398478606,1765718120895,160.0,5.2e-07,2]
[398478607,1765718122040,160.0,5.2e-07,2]
[398478608,1765718146855,325.48,0.00010685,2]
[398478609,1765718147308,650.96,0.00011656,2]
[398478610,1765718147702,976.45,0.00012627,2]
[398478611,1765718148119,1301.93,0.00013599,2]
[398478612,1765718148549,1627.41,0.0001457,2]
[398478613,1765718148953,1952.89,0.00015541,2]
[398478614,1765718149979,1776.19626675,0.00016513,2]
[398478615,1765718150012,502.17373325,0.00016513,2]
[398478616,1765718204298,1338.82351827,0.00017211,2]
[398478617,1765718224451,209.49,0.0001069,2]
[398478618,1765718224885,418.98,0.00011662,2]
[398478619,1765718225360,628.48,0.00012634,2]
[398478620,1765718225999,837.97,0.00013606,2]
[398478621,1765718226421,1047.46,0.00014577,2]
[398478622,1765718226829,1256.95,0.00015549,2]
[398478623,1765718227225,1466.45,0.00016521,2]
[398478624,1765718302987,150.0,0.00010674,2]
[398478625,1765718303414,269.67,0.00011644,2]
[398478626,1765718304295,404.51,0.00012614,2]
[398478627,1765718304721,539.35,0.00013585,2]
[398478628,1765718305054,441.45448884,0.00017069,2]
[398478629,1765718305199,488.24825964,0.00014555,2]
[398478630,1765718305225,185.93174036,0.00014555,2]
[398478631,1765718305606,809.02,0.00015525,2]
[398478632,1765718306029,943.86,0.00016496,2]
[398478633,1765718325635,8061.19825964,0.00016411,2]
[398478634,1765718325663,10000.01,0.00016411,2]
[398478635,1765718325687,8201.87238866,0.00016411,2]
[398478636,1765718381361,505.6667853,0.00016343,2]
[398478637,1765718381788,271.4,0.00010637,2]
[398478638,1765718382678,542.8,0.00011604,2]
[398478639,1765718383182,814.19,0.00012571,2]
[398478640,1765718383625,1085.59,0.00013539,2]
[398478641,1765718384062,1356.99,0.00014506,2]
[398478642,1765718384506,1628.39,0.00015473,2]
[398478643,1765718384919,1899.78,0.0001644,2]
[398478644,1765718459504,281.66,0.00010731,2]
[398478645,1765718459959,563.32,0.00011707,2]
[398478646,1765718460418,844.98,0.00012682,2]
[398478647,1765718460832,205.2432147,0.00013658,2]